fUST/lending_fUST_20241124
["ID","MTS","AMOUNT","RATE_DAILY","PERIOD"]
[343202274,1732441845840,-500.0,0.00020273,2]
[343202276,1732441845849,-585.97850622,0.00020273,2]
[343202278,1732441845858,-500.0,0.00020273,2]
[343202280,1732441845868,-151.0,0.00020273,2]
[343202281,1732441845877,-500.0,0.00020273,2]
[343202282,1732441845886,-151.0,0.00020273,2]
[343202283,1732441845896,-500.0,0.00020273,2]
[343202284,1732441845906,-500.0,0.00020273,2]
[343202285,1732441845917,-500.0,0.00020273,2]
[343202287,1732441845926,-500.0,0.00020273,2]
[343202290,1732441845938,-500.0,0.00020273,2]
[343202292,1732441845950,-579.13,0.00020273,2]
[343202294,1732441845959,-500.0,0.00020273,2]
[343202296,1732441845968,-500.0,0.00020273,2]
[343202297,1732441845977,-432.55048325,0.00020273,2]
[343202298,1732441845986,-500.0,0.00020273,2]
[343202300,1732441845999,-2307.779249,0.00020273,2]
[343202302,1732441846008,-2307.779249,0.00020273,2]
[343202304,1732441846018,-299.42422,0.00020273,2]
[343202306,1732441846027,-500.0,0.00020273,2]
[343202308,1732441846037,-299.42422,0.00020273,2]
[343202310,1732441846047,-2307.779249,0.00020273,2]
[343202312,1732441846056,-2307.77925559,0.00020273,2]
[343202314,1732441846067,-176.546039,0.00020273,2]
[343202316,1732441846077,-176.546039,0.00020273,2]
[343202318,1732441846086,-299.42422,0.00020273,2]
[343202320,1732441846095,-299.424228,0.00020273,2]
[343202322,1732441846105,-176.546039,0.00020273,2]
[343202324,1732441846114,-176.546034,0.00020273,2]
[343202326,1732441846123,-382.327811,0.00020273,2]
[343202328,1732441846132,-382.327811,0.00020273,2]
[343202330,1732441846141,-500.0,0.00020273,2]
[343202332,1732441846151,-500.0,0.00020273,2]
[343202334,1732441846160,-500.0,0.00020273,2]
[343202336,1732441846169,-500.0,0.00020273,2]
[343202338,1732441846178,-1218.066645,0.00020273,2]
[343202340,1732441846187,-1218.066649,0.00020273,2]
[343202342,1732441846196,-500.0,0.00020273,2]
[343202344,1732441846205,-500.0,0.00020273,2]
[343202346,1732441846215,-1534.562321,0.00020273,2]
[343202348,1732441846224,-683.05,0.00020273,2]
[343202350,1732441846234,-215.027274,0.00020273,2]
[343202352,1732441846243,-1534.562321,0.00020273,2]
[343202354,1732441846252,-215.027282,0.00020273,2]
[343202356,1732441846261,-760.49,0.00020273,2]
[343202358,1732441846270,-500.0,0.00020273,2]
[343202360,1732441846279,-916.04,0.00020273,2]
[343202362,1732441846288,-151.0,0.00020273,2]
[343202364,1732441846297,-151.0,0.00020273,2]
[343202366,1732441846306,-500.0,0.00020273,2]
[343202368,1732441846315,-201.863933,0.00020273,2]
[343202370,1732441846326,-201.863933,0.00020273,2]
[343202372,1732441846335,-201.863933,0.00020273,2]
[343202374,1732441846344,-201.863933,0.00020273,2]
[343202376,1732441846353,-666.7,0.00020273,2]
[343202378,1732441846363,-1295.3,0.00020273,2]
[343202380,1732441846372,-2534.40625,0.00020273,2]
[343202382,1732441846381,-1101.151481,0.00020273,2]
[343202384,1732441846391,-500.0,0.00020273,2]
[343202386,1732441846400,-1101.15148,0.00020273,2]
[343202388,1732441846410,-2534.40625,0.00020273,2]
[343202390,1732441846419,-2063.86,0.00020273,2]
[343202392,1732441846428,-500.0,0.00020273,2]
[343202394,1732441846438,-812.07,0.00020273,2]
[343202396,1732441846447,-568.07,0.00020273,2]
[343202398,1732441846456,-500.0,0.00020273,2]
[343202400,1732441846466,-962.412136,0.00020273,2]
[343202402,1732441846475,-151.0,0.00020273,2]
[343202404,1732441846485,-962.412139,0.00020273,2]
[343202406,1732441846494,-1571.29,0.00020273,2]
[343202408,1732441846504,-503.87,0.00020273,2]
[343202410,1732441846514,-665.32,0.00020273,2]
[343202412,1732441846523,-500.0,0.00020273,2]
[343202414,1732441846533,-374.406418,0.00020273,2]
[343202416,1732441846543,-500.0,0.00020273,2]
[343202418,1732441846552,-374.406417,0.00020273,2]
[343202420,1732441846562,-500.0,0.00020273,2]
[343202422,1732441846573,-773.98,0.00020273,2]
[343202424,1732441846582,-316.38701626,0.00020273,2]
[343202425,1732441846592,-310.593546,0.00020273,2]
[343202427,1732441846602,-500.0,0.00020273,2]
[343202429,1732441846611,-500.0,0.00020273,2]
[343202431,1732441846620,-310.593538,0.00020273,2]
[343202432,1732441846629,-1232.21,0.00020273,2]
[343202434,1732441846638,-9786.61,0.00020273,2]
[343202436,1732441846648,-500.0,0.00020273,2]
[343202438,1732441846658,-1166.37,0.00020273,2]
[343202440,1732441846667,-1341.043763,0.00020273,2]
[343202441,1732441846676,-168.166534,0.00020273,2]
[343202443,1732441846686,-500.0,0.00020273,2]
[343202445,1732441846695,-500.0,0.00020273,2]
[343202447,1732441846705,-1341.043765,0.00020273,2]
[343202448,1732441846714,-168.166534,0.00020273,2]
[343202450,1732441846724,-373.30982,0.00020273,2]
[343202452,1732441846733,-373.309814,0.00020273,2]
[343202454,1732441846742,-1688.81377947,0.000203,2]
[343202456,1732441846752,-151.0,0.000203,3]
[343202458,1732441846761,-151.0,0.000204,4]
[343202459,1732441846770,-151.0,0.000204,3]
[343202461,1732441846781,-300.0,0.00020515,2]
[343202463,1732441846790,-542.00922101,0.00020547,2]
[343202464,1732441846799,-151.0,0.00020547,2]
[343202466,1732441846808,-500.0,0.00020547,2]
[343202468,1732441846819,-500.0,0.00020547,2]
[343202469,1732441846828,-500.0,0.00020547,2]
[343202470,1732441846838,-189.134957,0.00020547,2]
[343202471,1732441846848,-189.134957,0.00020547,2]
[343202472,1732441846858,-151.0,0.00020547,2]
[343202473,1732441846867,-151.0,0.00020547,2]
[343202474,1732441846877,-500.0,0.00020547,2]
[343202475,1732441846886,-170.456559,0.00020547,2]
[343202476,1732441846896,-170.456559,0.00020547,2]
[343202477,1732441846905,-500.0,0.00020547,2]
[343202478,1732441846915,-151.0,0.00020547,2]
[343202479,1732441846925,-151.0,0.00020547,2]
[343202480,1732441846934,-151.0,0.00020547,2]
[343202481,1732441846944,-151.0,0.00020547,2]
[343202482,1732441846954,-500.0,0.00020547,2]
[343202483,1732441846963,-500.0,0.00020547,2]
[343202484,1732441846973,-500.0,0.00020547,2]
[343202485,1732441846983,-151.0,0.00020547,2]
[343202486,1732441846999,-151.0,0.00020547,2]
[343202487,1732441847019,-151.0,0.00020547,2]
[343202489,1732441847041,-151.0,0.00020547,2]
[343202491,1732441847056,-500.0,0.00020547,2]
[343202493,1732441847065,-500.0,0.00020547,2]
[343202495,1732441847079,-500.0,0.00020547,2]
[343202497,1732441847088,-607.09,0.00020547,2]
[343202499,1732441847097,-1295.11,0.00020547,2]
[343202500,1732441847106,-169.448064,0.00020547,2]
[343202501,1732441847118,-169.448064,0.00020547,2]
[343202502,1732441847127,-1676.501919,0.00020547,2]
[343202503,1732441847136,-1676.501919,0.00020547,2]
[343202504,1732441847145,-169.448064,0.00020547,2]
[343202505,1732441847154,-169.448074,0.00020547,2]
[343202506,1732441847164,-1676.501919,0.00020547,2]
[343202507,1732441847173,-1676.501919,0.00020547,2]
[343202508,1732441847182,-2745.327165,0.00020547,2]
[343202509,1732441847192,-2745.327165,0.00020547,2]
[343202510,1732441847201,-1996.16940844,0.00020547,2]
[343202522,1732442224612,20000.0,0.00028162,60]
[343202523,1732442811123,-235.7522136,0.00010848,2]
[343202578,1732443032684,-246.94577254,0.00010858,2]
[343202579,1732443032694,-300.0,0.00010958,2]
[343202580,1732443032703,-300.0,0.00010958,2]
[343202581,1732443032713,-307.37313923,0.00010959,2]
[343202582,1732443032724,-371.34686077,0.00010959,2]
[343202583,1732443032734,-38.26131219,0.00010959,2]
[343202584,1732443032745,-477.58602924,0.00010959,2]
[343202591,1732443038825,-49.75265857,0.00010959,2]
[343202592,1732443038836,-471.33,0.00010959,2]
[343202593,1732443038845,-392.78,0.00010959,2]
[343202594,1732443038855,-76.9255782,0.00010959,2]
[343202600,1732443040484,-250.3944218,0.00010959,2]
[343202601,1732443040496,-272.76,0.00010959,2]
[343202602,1732443040506,-227.3,0.00010959,2]
[343202603,1732443040516,-189.42,0.00010959,2]
[343202604,1732443040525,-157.85,0.00010959,2]
[343202605,1732443040535,-789.27,0.00010959,2]
[343202606,1732443040545,-420.0,0.00012042,2]
[343202607,1732443040554,-420.0,0.00012054,2]
[343202608,1732443040563,-151.0,0.00013,2]
[343202609,1732443040573,-616.6384147,0.0001306,2]
[343202610,1732443040582,-587.0,0.00013233,2]
[343202611,1732443040591,-587.0,0.00013259,2]
[343202612,1732443040601,-863.876203,0.00013699,2]
[343202613,1732443040610,-24900.0,0.00013723,2]
[343202614,1732443040619,-160.100537,0.00013973,2]
[343202615,1732443040629,-151.0,0.00014,2]
[343202616,1732443040639,-152.0,0.00014127,2]
[343202617,1732443040649,-1001.652727,0.00014501,2]
[343202618,1732443040658,-2099.44183247,0.00014502,2]
[343202619,1732443040671,-21331.0348317,0.00014502,2]
[343202620,1732443040681,-823.0,0.00014543,2]
[343202621,1732443040690,-823.0,0.00014585,2]
[343202622,1732443040700,-6631.766454,0.00014934,2]
[343202623,1732443040710,-151.0,0.000151,2]
[343202624,1732443040720,-6631.766454,0.00015619,2]
[343202625,1732443040730,-1152.0,0.00015981,2]
[343202626,1732443040739,-1152.0,0.00016043,2]
[343202627,1732443040749,-151.0,0.000161,2]
[343202628,1732443040759,-6631.766454,0.00016304,2]
[343202629,1732443040768,-500.0,0.0001668,2]
[343202630,1732443040778,-500.91716721,0.0001668,2]
[343202631,1732443040788,-500.0,0.0001668,2]
[343202632,1732443040799,-503.20526958,0.0001668,2]
[343202633,1732443040814,-468.6902168,0.0001668,2]
[343202634,1732443040823,-605.48906322,0.0001668,2]
[343202635,1732443040833,-502.0145609,0.0001668,2]
[343202636,1732443040842,-339.02182066,0.0001668,2]
[343202637,1732443040851,-500.0,0.0001668,2]
[343202638,1732443040860,-597.23207824,0.00016917,2]
[343202639,1732443040870,-221.37516081,0.00016917,2]
[343202640,1732443040879,-500.0,0.00016917,2]
[343202641,1732443040889,-500.0,0.00016929,2]
[343202642,1732443040898,-151.0,0.000171,2]
[343202643,1732443040908,-1000.0,0.00017228,2]
[343202644,1732443040917,-524.55297112,0.00017465,2]
[343202645,1732443040926,-507.21019916,0.00017477,2]
[343202646,1732443040936,-623.18125837,0.00017524,2]
[343202647,1732443040945,-1613.0,0.00017563,2]
[343202648,1732443040955,-1613.0,0.00017648,2]
[343202649,1732443040964,-239.96733231,0.00017973,2]
[343202650,1732443040973,-151.0,0.00018,2]
[343202651,1732443040982,-151.0,0.00018,2]
[343202652,1732443040992,-500.0,0.00018022,2]
[343202653,1732443041001,-500.0,0.00018022,2]
[343202654,1732443041010,-500.0,0.00018022,2]
[343202655,1732443041019,-500.0,0.00018022,2]
[343202656,1732443041028,-500.0,0.00018022,2]
[343202657,1732443041037,-500.0,0.00018022,2]
[343202658,1732443041049,-500.0,0.00018022,2]
[343202659,1732443041059,-500.0,0.00018022,2]
[343202660,1732443041068,-296.36235364,0.00018022,2]
[343202661,1732443041078,-318.17525947,0.00018022,2]
[343202662,1732443041087,-500.0,0.00018022,2]
[343202663,1732443041096,-500.0,0.00018022,2]
[343202664,1732443041105,-74.77900011,0.00018022,2]
[343202691,1732443044111,-425.22099989,0.00018022,2]
[343202692,1732443044121,-500.0,0.00018022,2]
[343202693,1732443044131,-500.0,0.00018022,2]
[343202694,1732443044140,-500.0,0.00018022,2]
[343202695,1732443044150,-500.0,0.00018022,2]
[343202696,1732443044160,-500.0,0.00018022,2]
[343202697,1732443044169,-500.0,0.00018022,2]
[343202698,1732443044179,-500.0,0.00018022,2]
[343202699,1732443044188,-500.0,0.00018022,2]
[343202700,1732443044197,-500.0,0.00018022,2]
[343202701,1732443044208,-300.0,0.00018022,2]
[343202702,1732443044218,-500.0,0.00018022,2]
[343202703,1732443044227,-500.0,0.00018022,2]
[343202704,1732443044236,-155.36921961,0.00018022,2]
[343202705,1732443044245,-500.0,0.00018022,2]
[343202706,1732443044255,-500.0,0.00018022,2]
[343202707,1732443044264,-500.0,0.00018022,2]
[343202708,1732443044273,-500.0,0.00018022,2]
[343202709,1732443044282,-500.0,0.00018022,2]
[343202710,1732443044293,-500.0,0.00018022,2]
[343202711,1732443044313,-500.0,0.00018022,2]
[343202712,1732443044325,-642.24297271,0.00018022,2]
[343202713,1732443044338,-500.0,0.00018022,2]
[343202714,1732443044347,-500.0,0.00018022,2]
[343202715,1732443044357,-500.0,0.00018022,2]
[343202716,1732443044367,-500.0,0.00018022,2]
[343202717,1732443044376,-500.0,0.00018022,2]
[343202718,1732443044385,-500.0,0.00018022,2]
[343202719,1732443044395,-500.0,0.00018022,2]
[343202720,1732443044406,-500.0,0.00018022,2]
[343202721,1732443044416,-500.0,0.00018022,2]
[343202722,1732443044426,-500.0,0.00018022,2]
[343202723,1732443044436,-500.0,0.00018022,2]
[343202724,1732443044446,-500.0,0.00018022,2]
[343202725,1732443044456,-500.0,0.00018022,2]
[343202726,1732443044465,-500.0,0.00018022,2]
[343202727,1732443044475,-500.0,0.00018022,2]
[343202728,1732443044484,-500.0,0.00018022,2]
[343202729,1732443044493,-500.0,0.00018022,2]
[343202730,1732443044503,-500.0,0.00018022,2]
[343202731,1732443044512,-500.0,0.00018022,2]
[343202732,1732443044522,-500.0,0.00018022,2]
[343202733,1732443044532,-425.74655365,0.00018022,2]
[343202734,1732443044541,-500.0,0.00018022,2]
[343202735,1732443044551,-500.0,0.00018022,2]
[343202736,1732443044561,-218.91321214,0.00018022,2]
[343202737,1732443044571,-308.33144606,0.00018026,2]
[343202738,1732443044580,-510.00265163,0.00018026,2]
[343202739,1732443044590,-285.32782686,0.00018026,2]
[343202740,1732443044599,-319.66244473,0.00018026,2]
[343202741,1732443044609,-161.32101328,0.00018026,2]
[343202742,1732443044619,-250000.0,0.00018027,2]
[343202743,1732443044628,-500.0,0.00018073,2]
[343202744,1732443044638,-151.0,0.000181,2]
[343202745,1732443044647,-1500.0,0.0001823,2]
[343202746,1732443044657,-151.0,0.000183,2]
[343202747,1732443044666,-151.0,0.000184,2]
[343202748,1732443044676,-249.48981,0.000185,2]
[343202749,1732443044685,-239.96733227,0.00018508,2]
[343202750,1732443044695,-1231.336,0.00018558,2]
[343202751,1732443044704,-151.0,0.000186,2]
[343202752,1732443044714,-505.59747171,0.00018621,2]
[343202753,1732443044723,-151.0,0.000187,2]
[343202754,1732443044733,-151.0,0.000187,2]
[343202755,1732443044742,-500.0,0.00018715,2]
[343202756,1732443044751,-500.0,0.00018736,2]
[343202757,1732443044761,-500.0,0.00018736,2]
[343202758,1732443044771,-257.19315839,0.00018842,2]
[343202759,1732443044780,-151.0,0.000189,2]
[343202760,1732443044791,-151.0,0.00019,2]
[343202761,1732443044800,-151.0,0.00019,2]
[343202762,1732443044810,-239.96733227,0.00019043,2]
[343202763,1732443044819,-151.0,0.000191,2]
[343202764,1732443044829,-500.0,0.00019106,2]
[343202765,1732443044838,-500.0,0.00019106,2]
[343202766,1732443044848,-500.0,0.00019178,2]
[343202767,1732443044858,-500.0,0.00019178,2]
[343202768,1732443044867,-270.73030489,0.00019178,2]
[343202769,1732443044876,-500.0,0.00019178,2]
[343202770,1732443044886,-500.0,0.00019178,2]
[343202771,1732443044895,-500.0,0.00019178,2]
[343202772,1732443044905,-500.0,0.00019178,2]
[343202773,1732443044914,-500.0,0.00019178,2]
[343202774,1732443044924,-500.0,0.00019178,2]
[343202775,1732443044934,-971.33,0.00019178,2]
[343202776,1732443044944,-500.0,0.00019178,2]
[343202777,1732443044954,-500.0,0.00019178,2]
[343202778,1732443044963,-624.93,0.00019178,2]
[343202779,1732443044973,-500.0,0.00019178,2]
[343202780,1732443044983,-500.0,0.00019178,2]
[343202781,1732443044993,-500.0,0.00019178,2]
[343202782,1732443045003,-500.0,0.00019178,2]
[343202783,1732443045013,-500.0,0.00019178,2]
[343202784,1732443045023,-359.98569282,0.00019178,2]
[343202785,1732443045032,-500.0,0.00019178,2]
[343202786,1732443045043,-315.90173935,0.00019178,2]
[343202787,1732443045053,-500.0,0.00019178,2]
[343202788,1732443045062,-500.0,0.00019178,2]
[343202789,1732443045072,-500.0,0.00019178,2]
[343202790,1732443045082,-500.0,0.00019178,2]
[343202791,1732443045091,-500.0,0.00019178,2]
[343202792,1732443045101,-500.0,0.00019178,2]
[343202793,1732443045110,-500.0,0.00019178,2]
[343202794,1732443045120,-500.0,0.00019178,2]
[343202795,1732443045130,-500.0,0.00019178,2]
[343202796,1732443045139,-500.0,0.00019178,2]
[343202797,1732443045149,-500.0,0.00019178,2]
[343202798,1732443045159,-571.85492203,0.00019178,2]
[343202799,1732443045169,-500.0,0.00019178,2]
[343202800,1732443045179,-500.0,0.00019178,2]
[343202801,1732443045188,-500.0,0.00019178,2]
[343202802,1732443045199,-500.0,0.00019178,2]
[343202803,1732443045208,-725.2,0.00019178,2]
[343202804,1732443045218,-500.0,0.00019178,2]
[343202805,1732443045228,-540.74,0.00019178,2]
[343202806,1732443045238,-602.06,0.00019178,2]
[343202807,1732443045247,-500.0,0.00019178,2]
[343202808,1732443045257,-500.0,0.00019178,2]
[343202809,1732443045267,-527.8,0.00019178,2]
[343202810,1732443045276,-1025.44,0.00019178,2]
[343202811,1732443045286,-500.0,0.00019178,2]
[343202812,1732443045296,-500.0,0.00019178,2]
[343202813,1732443045306,-1633.89,0.00019178,2]
[343202814,1732443045316,-500.0,0.00019178,2]
[343202815,1732443045328,-642.89,0.00019178,2]
[343202816,1732443045338,-500.0,0.00019178,2]
[343202817,1732443045348,-500.0,0.00019178,2]
[343202818,1732443045357,-500.0,0.00019178,2]
[343202819,1732443045367,-1243.93,0.00019178,2]
[343202820,1732443045377,-526.72,0.00019178,2]
[343202821,1732443045386,-500.0,0.00019178,2]
[343202822,1732443045395,-975.5,0.00019178,2]
[343202823,1732443045406,-248.7809462,0.00019178,2]
[343202824,1732443045416,-500.0,0.00019178,2]
[343202825,1732443045425,-500.0,0.00019178,2]
[343202826,1732443045435,-612.73,0.00019178,2]
[343202827,1732443045445,-923.37,0.00019178,2]
[343202828,1732443045454,-500.0,0.00019178,2]
[343202829,1732443045464,-500.0,0.00019178,2]
[343202830,1732443045473,-416.5087139,0.00019178,2]
[343202831,1732443045482,-500.0,0.00019178,2]
[343202832,1732443045493,-7747.74,0.00019178,2]
[343202833,1732443045503,-616.65699785,0.00019178,2]
[343202834,1732443045512,-500.0,0.00019178,2]
[343202835,1732443045522,-500.0,0.00019178,2]
[343202836,1732443045531,-164.556448,0.00019178,2]
[343202837,1732443045541,-151.0,0.000192,2]
[343202838,1732443045551,-151.0,0.000192,2]
[343202839,1732443045560,-1000.0,0.00019263,2]
[343202840,1732443045569,-530.0,0.00019274,2]
[343202841,1732443045579,-1237.718,0.00019274,2]
[343202842,1732443045588,-2381.0,0.00019274,2]
[343202843,1732443045597,-283.32862556,0.00019284,2]
[343202844,1732443045607,-2258.0,0.000193,2]
[343202845,1732443045615,-500.0,0.00019311,2]
[343202846,1732443045626,-151.0,0.000194,2]
[343202847,1732443045636,-151.0,0.000194,2]
[343202848,1732443045645,-500.0,0.00019452,2]
[343202849,1732443045654,-500.0,0.00019452,2]
[343202850,1732443045664,-500.0,0.00019452,2]
[343202851,1732443045674,-500.0,0.00019452,2]
[343202852,1732443045683,-500.0,0.00019452,2]
[343202853,1732443045693,-500.0,0.00019452,2]
[343202854,1732443045702,-500.0,0.00019452,2]
[343202855,1732443045711,-201.66441231,0.00019452,2]
[343202856,1732443045720,-971.33,0.00019452,2]
[343202857,1732443045875,-500.0,0.00019452,2]
[343202858,1732443045885,-500.0,0.00019452,2]
[343202859,1732443045895,-624.93,0.00019452,2]
[343202860,1732443045905,-500.0,0.00019452,2]
[343202861,1732443045915,-500.0,0.00019452,2]
[343202863,1732443045926,-500.0,0.00019452,2]
[343202864,1732443045936,-500.0,0.00019452,2]
[343202866,1732443045945,-500.0,0.00019452,2]
[343202868,1732443045955,-500.0,0.00019452,2]
[343202869,1732443045965,-500.0,0.00019452,2]
[343202870,1732443045973,-420.23612655,0.00019452,2]
[343202871,1732443045983,-500.0,0.00019452,2]
[343202872,1732443045992,-500.0,0.00019452,2]
[343202873,1732443046001,-500.0,0.00019452,2]
[343202874,1732443046011,-500.0,0.00019452,2]
[343202875,1732443046020,-500.0,0.00019452,2]
[343202876,1732443046029,-500.0,0.00019452,2]
[343202877,1732443046039,-186.22656975,0.00019452,2]
[343202878,1732443046052,-500.0,0.00019452,2]
[343202879,1732443046062,-500.0,0.00019452,2]
[343202880,1732443046071,-292.52057741,0.00019452,2]
[343202881,1732443046080,-500.0,0.00019452,2]
[343202882,1732443046090,-500.0,0.00019452,2]
[343202883,1732443046099,-725.2,0.00019452,2]
[343202884,1732443046109,-500.0,0.00019452,2]
[343202886,1732443046119,-540.74,0.00019452,2]
[343202887,1732443046128,-602.06,0.00019452,2]
[343202888,1732443046137,-500.0,0.00019452,2]
[343202889,1732443046146,-500.0,0.00019452,2]
[343202890,1732443046156,-527.8,0.00019452,2]
[343202891,1732443046165,-1025.44,0.00019452,2]
[343202892,1732443046174,-500.0,0.00019452,2]
[343202893,1732443046183,-500.0,0.00019452,2]
[343202894,1732443046192,-1633.89,0.00019452,2]
[343202895,1732443046201,-500.0,0.00019452,2]
[343202896,1732443046210,-642.89,0.00019452,2]
[343202897,1732443046219,-500.0,0.00019452,2]
[343202898,1732443046229,-500.0,0.00019452,2]
[343202899,1732443046238,-500.0,0.00019452,2]
[343202900,1732443046248,-1243.93,0.00019452,2]
[343202901,1732443046257,-526.72,0.00019452,2]
[343202902,1732443046267,-500.0,0.00019452,2]
[343202903,1732443046277,-975.5,0.00019452,2]
[343202904,1732443046286,-500.0,0.00019452,2]
[343202905,1732443046297,-500.0,0.00019452,2]
[343202906,1732443046307,-612.73,0.00019452,2]
[343202907,1732443046315,-923.37,0.00019452,2]
[343202908,1732443046330,-500.0,0.00019452,2]
[343202909,1732443046339,-500.0,0.00019452,2]
[343202910,1732443046348,-500.0,0.00019452,2]
[343202911,1732443046358,-7747.74,0.00019452,2]
[343202912,1732443046367,-500.0,0.00019452,2]
[343202913,1732443046376,-500.0,0.00019452,2]
[343202914,1732443046386,-151.0,0.000195,2]
[343202915,1732443046395,-2000.0,0.00019527,2]
[343202916,1732443046405,-500.0,0.0001954,2]
[343202917,1732443046415,-239.96733227,0.00019578,2]
[343202918,1732443046424,-1000.0,0.00019654,2]
[343202919,1732443046434,-483.871,0.000197,2]
[343202920,1732443046443,-151.0,0.000197,2]
[343202921,1732443046452,-151.0,0.000197,2]
[343202922,1732443046462,-151.0,0.000197,2]
[343202923,1732443046471,-500.0,0.00019726,2]
[343202924,1732443046480,-500.0,0.00019726,2]
[343202925,1732443046490,-500.0,0.00019726,2]
[343202926,1732443046500,-500.0,0.00019726,2]
[343202927,1732443046509,-500.0,0.00019726,2]
[343202928,1732443046518,-500.0,0.00019726,2]
[343202929,1732443046527,-500.0,0.00019726,2]
[343202930,1732443046536,-971.33,0.00019726,2]
[343202931,1732443046549,-500.0,0.00019726,2]
[343202932,1732443046559,-278.776914,0.00019726,2]
[343202933,1732443046568,-278.776914,0.00019726,2]
[343202934,1732443046577,-500.0,0.00019726,2]
[343202935,1732443046587,-624.93,0.00019726,2]
[343202936,1732443046596,-500.0,0.00019726,2]
[343202938,1732443046605,-500.0,0.00019726,2]
[343202939,1732443046614,-500.0,0.00019726,2]
[343202940,1732443046624,-500.0,0.00019726,2]
[343202941,1732443046633,-500.0,0.00019726,2]
[343202942,1732443046642,-500.0,0.00019726,2]
[343202943,1732443046652,-227.825394,0.00019726,2]
[343202944,1732443046661,-1170.423084,0.00019726,2]
[343202945,1732443046670,-227.825394,0.00019726,2]
[343202946,1732443046679,-500.0,0.00019726,2]
[343202947,1732443046689,-1170.423084,0.00019726,2]
[343202948,1732443046698,-151.0,0.00019726,2]
[343202949,1732443046708,-500.0,0.00019726,2]
[343202950,1732443046717,-354.12473916,0.00019726,2]
[343202951,1732443046726,-151.0,0.00019726,2]
[343202952,1732443046736,-253.440625,0.00019726,2]
[343202953,1732443046745,-253.440625,0.00019726,2]
[343202954,1732443046754,-151.0,0.00019726,2]
[343202955,1732443046763,-500.0,0.00019726,2]
[343202956,1732443046771,-500.0,0.00019726,2]
[343202957,1732443046780,-527.81058945,0.00019726,2]
[343202958,1732443046789,-445.67928553,0.00019726,2]
[343202959,1732443046800,-3548.503476,0.00019726,2]
[343202960,1732443046809,-3548.503476,0.00019726,2]
[343202961,1732443046819,-1854.824486,0.00019726,2]
[343202962,1732443046828,-1854.824486,0.00019726,2]
[343202963,1732443046837,-483.369536,0.00019726,2]
[343202964,1732443046847,-483.369536,0.00019726,2]
[343202965,1732443046856,-500.0,0.00019726,2]
[343202966,1732443046865,-500.0,0.00019726,2]
[343202967,1732443046874,-151.0,0.00019726,2]
[343202968,1732443046883,-338.743414,0.00019726,2]
[343202969,1732443046893,-500.0,0.00019726,2]
[343202970,1732443046903,-338.743414,0.00019726,2]
[343202971,1732443046914,-617.92920467,0.00019726,2]
[343202972,1732443046924,-725.2,0.00019726,2]
[343202973,1732443046934,-7330.979349,0.00019726,2]
[343202974,1732443046944,-500.0,0.00019726,2]
[343202975,1732443046953,-2553.559787,0.00019726,2]
[343202976,1732443046963,-7330.979349,0.00019726,2]
[343202977,1732443046974,-2553.559787,0.00019726,2]